Cogmind - Beta 10.2 @@@ ROGUE MODE // 2020.10.31 @ 19:04:49 // Halloween2020/ForbiddenLore Player: Pimski Result: Destroyed by G-47 Trooper with Particle Gun Performance ------------- Evolutions (1) 500 Regions Visited (6) 1200 Robots Destroyed (49) 245 Value Destroyed (785) 785 Prototype IDs (26) 520 Alien Tech Used (0) 0 Bonus (-280) -280 TOTAL SCORE: 2970 Bonus ------- High Alert Combat Kills 4 Follower Combat Kills 72 Aligned with FarCom 300 Friendly Fire -656 Cogmind --------- Core Integrity 0/400 Matter 153/400 Energy 100/100 System Corruption 0% Temperature Cool (18) Movement Treading (200) Ox2 Location -8/Mines Parts ------- > --- POWER (1) -------- (None) > --- PROPULSION (2) --- Light Treads > --- UTILITY (4) ------ Large Storage Unit Large Storage Unit Large Storage Unit Medium Matter Pod > --- WEAPON (2) ------- Assault Rifle Rocket Launcher > --- INVENTORY (22) --- Light Treads Advanced Myomer Leg Medium Storage Unit Large Storage Unit Gravity Neutralizing Apparatus Gravity Neutralizing Apparatus Modified TNC Beamcaster YOLO Cannon Assault Rifle Assault Rifle Light Assault Rifle Light Assault Rifle Light Assault Rifle Light Assault Rifle XL Autogun Array 8R-AWN's Boregun EMP Blaster Peak State ------------ > --- POWER ------------ (None) > --- PROPULSION ------- Light Treads Light Treads > --- UTILITY ---------- Large Storage Unit Large Storage Unit Large Storage Unit Medium Matter Pod > --- WEAPON ----------- Assault Rifle 8R-AWN's Boregun > --- INVENTORY -------- Light Treads Advanced Myomer Leg Medium Storage Unit Large Storage Unit Gravity Neutralizing Apparatus Gravity Neutralizing Apparatus Modified TNC Beamcaster YOLO Cannon Assault Rifle Light Assault Rifle Light Assault Rifle Light Assault Rifle Light Assault Rifle XL Autogun Array EMP Blaster Rocket Launcher [Rating: 26] Favorites ----------- Power Ion Engine Engine Ion Engine Propulsion Light Treads Treads Light Treads Leg Aluminum Leg Utility Large Storage Unit Device Improved Terrain Scanner Storage Large Storage Unit Protection Medium Armor Plating Weapon Improved Assault Rifle Energy Gun Medium Laser Ballistic Gun Improved Assault Rifle Launcher Rocket Launcher Special Weapon Plasma Cutter Build | -11 -10 -10 -9 -9 -9 -8 ------- Run | Scr Mat Min Mat Min Exi Min Slots Evolved 2 | . . . 2 . . . Power . | . . . . . . . Propulsion . | . . . . . . . Utility 2 | . . . 2 . . . Weapon . | . . . . . . . Parts Attached 38 | 2 4 . 8 4 17 3 Power 2 | . . . 1 1 . . Engine 2 | . . . 1 1 . . Core . | . . . . . . . Reactor . | . . . . . . . Propulsion 5 | . 2 . . . 3 . Treads 5 | . 2 . . . 3 . Leg . | . . . . . . . Wheel . | . . . . . . . Hover . | . . . . . . . Flight . | . . . . . . . Utility 13 | 1 2 . 3 1 6 . Device 2 | 1 . . . . 1 . Storage 7 | . 2 . 2 . 3 . Processor . | . . . . . . . Hackware . | . . . . . . . Protection 4 | . . . 1 1 2 . Artifact . | . . . . . . . Weapon 18 | 1 . . 4 2 8 3 Energy Gun . | . . . . . . . Energy Cannon . | . . . . . . . Ballistic Gun 13 | 1 . . 3 1 6 2 Ballistic Cannon . | . . . . . . . Launcher 4 | . . . 1 1 1 1 Special Weapon 1 | . . . . . 1 . Impact Weapon . | . . . . . . . Slashing Weapon . | . . . . . . . Piercing Weapon . | . . . . . . . Special Melee Weapon . | . . . . . . . Unidentified Prototypes 3 | . . . 1 . 2 . Parts Lost 15 | . . . 1 2 10 2 Power 3 | . . . 1 1 1 . Propulsion 4 | . . . . . 3 1 Utility 4 | . . . . 1 3 . Weapon 4 | . . . . . 3 1 Highest Loss Streak 6 | . . . 1 1 6 1 Average Slot Usage (%) 96 | . 100 100 99 99 94 87 Engine 9 | . 14 14 10 10 6 . Treads 23 | . 26 28 22 22 22 22 Storage 31 | . 23 28 33 33 32 44 Protection 7 | . . . 11 11 10 . Energy Gun 4 | . 14 14 2 . . . Ballistic Gun 19 | . 14 14 18 21 21 17 Naked Turns . | . . . . . . . Heaviest Build 70 | 12 39 39 70 70 66 58 Greatest Support 40 | 20 40 40 40 40 40 40 Greatest Overweight (x) 1 | . . . 1 1 1 1 Average Overweight (x) . | . . . . 1 . 1 Largest Inventory Capacity 22 | 6 16 16 22 22 22 22 Average Capacity 18 | 6 12 16 20 22 19 22 Most Carried 22 | 6 16 16 22 22 22 22 Average Carried 17 | 6 10 15 19 21 18 21 Final Capacity 22 | 6 16 16 22 22 22 22 Final Carried 22 | 6 16 16 22 22 22 22 Class Distribution -------------------- 55% | Hauler-Mutant 44% | Mutant Dominant Class ---------------- Mutant | -10/Materials Mutant | -10/Mines Hauler-Mutant | -9/Materials Hauler-Mutant | -9/Mines Hauler-Mutant | -9/Exiles Hauler-Mutant | -8/Mines Resources | -11 -10 -10 -9 -9 -9 -8 ----------- Run | Scr Mat Min Mat Min Exi Min Matter Collected 1117 | 220 46 49 211 294 252 45 Remotely . | . . . . . . . Salvage Created 1456 | 105 100 279 355 424 148 45 Parts 80 | 5 1 20 23 25 4 2 Haulers Intercepted 2 | . . . 2 . . . Recyclers Shooed 5 | . 1 2 2 . . . Parts Field Recycled . | . . . . . . . Retrieved Matter . | . . . . . . . Parts Self-Destructed . | . . . . . . . Prevented . | . . . . . . . Kills | -11 -10 -10 -9 -9 -9 -8 ------- Run | Scr Mat Min Mat Min Exi Min Combat Hostiles Destroyed 34 | . . 5 10 14 4 1 Guns 25 | . . 5 7 11 1 1 AOE 9 | . . . 3 3 3 . Classes Destroyed 11 | 2 . 3 3 1 1 1 Builder 2 | . . 1 1 . . . Tunneler 2 | 1 . . . 1 . . Hauler 2 | . . . 2 . . . Recycler 4 | 1 1 2 . . . . Watcher 1 | . . . 1 . . . Swarmer 17 | . . 4 7 6 . . Grunt 10 | . . 1 2 7 . . Duelist 1 | . . . . 1 . . Sentry 1 | . . . 1 . . . Hunter 1 | . . . . . . 1 Assembled 7 | . . . . . 7 . Best Kill Streak 4 | 1 1 3 4 4 3 1 Combat Bots Only 4 | . . 3 4 4 3 1 Max Kills in Single Turn 4 | 1 1 1 3 2 4 1 Gunslinging 1 | . . . 1 . . . Exploded 3 | . . . 3 2 1 . Melee . | . . . . . . . Uniques/NPCs Destroyed 1 | . . . . . 1 . 8R-AWN (-9/Exiles) Combat | -11 -10 -10 -9 -9 -9 -8 -------- Run | Scr Mat Min Mat Min Exi Min Damage Taken 2407 | . . 109 173 486 1365 274 Core 429 | . . 18 46 62 238 65 Absorbed by Shields . | . . . . . . . Core Remaining (%) 96 | 100 . 92 . . . . Volleys Fired 148 | 2 2 20 27 42 47 8 Largest 2 | 2 2 2 2 2 2 2 Hottest 90 | 90 70 70 70 46 46 50 Shots Fired 285 | 4 4 40 53 82 88 14 Gun 271 | 4 4 40 52 80 79 12 Cannon . | . . . . . . . Launcher 10 | . . . 1 2 5 2 Special 4 | . . . . . 4 . Kinetic 239 | . 2 20 46 80 79 12 Thermal 34 | 2 2 20 6 . 4 . Explosive 10 | . . . 1 2 5 2 Electromagnetic 2 | 2 . . . . . . Robot Hit Streak 19 | 3 6 6 17 19 18 7 Robot Miss Streak 3 | . 1 3 3 2 2 1 Penetration Max . | . . . . . . . Secondary Targets 3 | . . 1 1 1 . . Max Gunslinging Chain 1 | . . 1 1 1 . . Shots Hit Robots 207 | 3 3 21 35 66 72 7 Core Hits 83 | 2 2 12 16 22 26 3 Critical Hits 2 | . . . . 1 1 . Critical Kills . | . . . . . . . Critical Parts Destroyed 2 | . . . . 1 1 . Melee Attacks . | . . . . . . . Impact . | . . . . . . . Slashing . | . . . . . . . Piercing . | . . . . . . . Sneak Attacks . | . . . . . . . Combat Hostiles . | . . . . . . . Follow-up Attacks . | . . . . . . . Damage Inflicted 3627 | 42 50 308 693 1085 1366 83 Guns 2790 | 42 50 266 514 909 926 83 Cannons . | . . . . . . . Explosions 771 | . . . 166 176 429 . Melee . | . . . . . . . Ramming 55 | . . 42 13 . . . Kinetic 2493 | . 25 100 450 909 926 83 Thermal 278 | 12 25 166 64 . 11 . Explosive 771 | . . . 166 176 429 . Electromagnetic 30 | 30 . . . . . . Impact . | . . . . . . . Slashing . | . . . . . . . Piercing . | . . . . . . . Highest Corruption . | . . . . . . . Average Corruption . | . . . . . . . Corruption Purged . | . . . . . . . Overload Shots . | . . . . . . . Overflow Damage 42 | . . . 17 25 . . Projectiles . | . . . . . . . Explosions 42 | . . . 17 25 . . Melee . | . . . . . . . Knockbacks . | . . . . . . . Impact . | . . . . . . . Kinetic . | . . . . . . . Secondary . | . . . . . . . Self-Inflicted Damage 59 | . . . . . 27 32 Shots 2 | . . . . . 1 1 Rammed 8 | . . 6 2 . . . Targets Rammed 8 | . . 6 2 . . . Kicked . | . . . . . . . Crushed . | . . . . . . . Highest Temperature 54 | 30 9 54 18 42 . . Average Temperature 15 | 17 6 16 9 19 . . Received Heat Transfer 261 | . . 18 9 207 . 27 Siege Activations . | . . . . . . . Robots Corrupted . | . . . . . . . Combat Hostiles . | . . . . . . . Parts Fried . | . . . . . . . Impact Corruptions . | . . . . . . . Robots Melted . | . . . . . . . Combat Hostiles . | . . . . . . . Parts Melted 1 | . . . 1 . . . Heat Transferred 786 | 37 74 481 185 . 9 . Parts Sabotaged . | . . . . . . . Parts Stolen . | . . . . . . . Parts Stripped . | . . . . . . . Power Chain Reactions . | . . . . . . . Missiles Intercepted . | . . . . . . . Alert | -11 -10 -10 -9 -9 -9 -8 ------- Run | Scr Mat Min Mat Min Exi Min Peak Influence 431 | 10 11 231 241 431 . 51 Initial 51 | . 6 4 11 51 . . Average 111 | 6 7 77 120 256 . 28 Maximum Alert Level 2 | . . 1 1 2 . . Low Security (%) 79 | 100 100 97 80 26 . 100 Level 1 17 | . . 2 19 58 . . Level 2 3 | . . . . 14 . . Level 3 . | . . . . . . . Level 4 . | . . . . . . . Level 5 . | . . . . . . . High Security . | . . . . . . . Max Security . | . . . . . . . Squads Dispatched . | . . . . . . . Investigation . | . . . . . . . Extermination . | . . . . . . . Reinforcement . | . . . . . . . Assault . | . . . . . . . Garrison . | . . . . . . . Intercept . | . . . . . . . Construction Impeded . | . . . . . . . Haulers Reinforced . | . . . . . . . Stealth | -11 -10 -10 -9 -9 -9 -8 --------- Run | Scr Mat Min Mat Min Exi Min Distress Signals 2 | . . 1 1 . . . Communications Jammed . | . . . . . . . Distress Signals . | . . . . . . . Times Spotted 48 | . 1 8 12 19 4 4 Peak Tracking Total 5 | . 1 2 4 4 5 3 Tactical Retreats 5 | . . . 1 4 . . Traps | -11 -10 -10 -9 -9 -9 -8 ------- Run | Scr Mat Min Mat Min Exi Min Traps Triggered . | . . . . . . . Indirectly . | . . . . . . . Trap Hack Attempts . | . . . . . . . Triggered . | . . . . . . . Disarmed . | . . . . . . . Reprogrammed . | . . . . . . . Reused . | . . . . . . . Traps Extracted . | . . . . . . . Installed . | . . . . . . . Triggered . | . . . . . . . Machines | -11 -10 -10 -9 -9 -9 -8 ---------- Run | Scr Mat Min Mat Min Exi Min Machines Disabled 6 | . . 1 1 . 4 . Max in Single Turn 1 | . . 1 . . 1 . Machines Sabotaged . | . . . . . . . Garrisons Compromised . | . . . . . . . Overloaded Fab Kills . | . . . . . . . Fab Network Shutdowns . | . . . . . . . Hacking | -11 -10 -10 -9 -9 -9 -8 --------- Run | Scr Mat Min Mat Min Exi Min Machines Accessed 4 | . 1 . 1 . 2 . Terminals 2 | . 1 . 1 . . . Fabricators . | . . . . . . . Repair Stations . | . . . . . . . Recycling Units . | . . . . . . . Scanalyzers . | . . . . . . . Garrison Access . | . . . . . . . Total Hacks 14 | . 6 . 6 . 2 . Successful 6 | . . . 4 . 2 . Failed 8 | . 6 . 2 . . . Catastrophic 1 | . 1 . . . . . Database Lockouts . | . . . . . . . Manual 13 | . 6 . 6 . 1 . Terminals 12 | . 6 . 6 . . . Fabricators . | . . . . . . . Repair Stations . | . . . . . . . Recycling Units . | . . . . . . . Scanalyzers . | . . . . . . . Garrison Access . | . . . . . . . Terminal Hacks 4 | . . . 2 . 2 . Record 1 | . . . . . 1 . Robot Analysis 1 | . . . 1 . . . Branch Access Points 1 | . . . 1 . . . EX-Prototype ID Bank 1 | . . . . . 1 . Fabricator Hacks . | . . . . . . . Repair Station Hacks . | . . . . . . . Recycling Unit Hacks . | . . . . . . . Scanalyzer . | . . . . . . . Garrison Access Hacks . | . . . . . . . Unauthorized Hacks 2 | . . . 2 . . . Terminals 2 | . . . 2 . . . Botnet 1 | . . . 1 . . . Operators 1 | . . . 1 . . . Fabricators . | . . . . . . . Repair Stations . | . . . . . . . Recycling Units . | . . . . . . . Scanalyzers . | . . . . . . . Garrison Access . | . . . . . . . Data Cores Recovered . | . . . . . . . Used . | . . . . . . . Hacking Detections 2 | . 1 . 1 . . . Full Trace Events . | . . . . . . . Feedback Events . | . . . . . . . Feedback Blocked . | . . . . . . . Robot Schematics Acquired . | . . . . . . . Robots Built . | . . . . . . . Matter . | . . . . . . . Time . | . . . . . . . Total Robot Build Rating . | . . . . . . . Part Schematics Acquired . | . . . . . . . Parts Built . | . . . . . . . Matter . | . . . . . . . Time . | . . . . . . . Total Part Build Rating . | . . . . . . . Parts Repaired . | . . . . . . . Time . | . . . . . . . Parts Recycled . | . . . . . . . Recycled Matter . | . . . . . . . Retrieved Matter . | . . . . . . . Retrieved Components . | . . . . . . . Parts Scanalyzed . | . . . . . . . Part Schematics Acquired . | . . . . . . . Parts Damaged . | . . . . . . . Bothacking | -11 -10 -10 -9 -9 -9 -8 ------------ Run | Scr Mat Min Mat Min Exi Min Used RIF Installer . | . . . . . . . Robots Hacked . | . . . . . . . Non-combat . | . . . . . . . Combat . | . . . . . . . Robot Hacks Applied . | . . . . . . . Relay Couplers Released . | . . . . . . . Robots Rewired . | . . . . . . . Allies Hacked . | . . . . . . . Hacks Repelled . | . . . . . . . Allies | -11 -10 -10 -9 -9 -9 -8 -------- Run | Scr Mat Min Mat Min Exi Min Total Allies 1 | . . 1 . . . . Largest Group 1 | . . 1 1 . . . Highest-Rated Group 31 | . . 31 31 . . . Highest-Rated Ally 31 | . . 31 31 . . . Total Orders . | . . . . . . . Ally Attacks 21 | . . 14 7 . . . Total Damage 271 | . . 189 82 . . . Kills 4 | . . 3 1 . . . Allies Corrupted . | . . . . . . . Allies Melted . | . . . . . . . Intel | -11 -10 -10 -9 -9 -9 -8 ------- Run | Scr Mat Min Mat Min Exi Min Robot Analysis Total 1 | . . . 1 . . . Derelict Logs Recovered 2 | . . 1 . 1 . . Drone Launches . | . . . . . . . Drone Recoveries . | . . . . . . . Exploration | -11 -10 -10 -9 -9 -9 -8 ------------- Run | Scr Mat Min Mat Min Exi Min Turns Passed 3698 | 70 231 729 472 444 1610 142 Spaces Moved 1742 | 17 132 397 190 166 794 46 Core . | . . . . . . . Treads 1714 | . 121 397 190 166 794 46 Legs 28 | 17 11 . . . . . Wheels . | . . . . . . . Hover . | . . . . . . . Flight . | . . . . . . . Fastest Speed 120 | 120 120 160 160 180 160 180 Average Speed 172 | 120 156 160 179 180 178 180 Slowest Speed 180 | 120 160 160 180 180 180 180 Overloaded Moves . | . . . . . . . Propulsion Burnouts . | . . . . . . . Robots Hopped . | . . . . . . . Cave-ins Triggered . | . . . . . . . Exploration Rate (%) 38 | 3 20 99 22 41 68 13 Regions Visited 6 Branch Regions 4 Pre-discovered Areas 2 | . . . . 1 1 . Known Exits Taken 1 | . . . 1 . . . Unknown Exits Taken 5 | 1 1 1 . 1 1 . Scrap Searched 3 | . . 2 . 1 . . Spaces Dug 22 | . . . 10 . . 12 Terrain Destroyed 99 | . . . 10 28 34 27 Melee . | . . . . . . . Projectile . | . . . . . . . AOE 99 | . . . 10 28 34 27 Terrain Rammed . | . . . . . . . Walls Destroyed . | . . . . . . . Machines Disabled . | . . . . . . . Actions | -11 -10 -10 -9 -9 -9 -8 --------- Run | Scr Mat Min Mat Min Exi Min Total 2146 | 61 153 449 267 228 897 91 Wait 137 | 41 . 19 22 16 6 33 Move 1736 | 16 131 396 189 165 793 46 Hop . | . . . . . . . Pick Up 49 | . 12 4 13 1 19 . Fast Attach 6 | 1 1 . 1 1 1 1 Attach 15 | . 2 . 2 1 9 1 Detach 1 | . . . . . . 1 Swap 17 | 1 1 . 5 2 7 1 Drop 29 | . 4 4 6 . 15 . Fire 148 | 2 2 20 27 42 47 8 Melee . | . . . . . . . Ram . | . . . . . . . Kick . | . . . . . . . Crush 8 | . . 6 2 . . . Escape Stasis . | . . . . . . . Rewire . | . . . . . . . Trap . | . . . . . . . Miscellaneous . | . . . . . . . Route ------- -11/Scrapyard -10/Materials -10/Mines (discovered 2 exits: *Mat x2) -9/Materials -9/Mines (discovered 2 exits: [*Mat] / *Exi) -9/Exiles -8/Mines History --------- Turn | Location | Event 5 | -11/Scrapyard | Discovered new exit (range 3) 71 | -11/Scrapyard | Entered Materials 284 | -10/Materials | Discovered new exit (range 6) 302 | -10/Materials | Entered Mines 310 | -10/Mines | Build established: Mutant 323 | -10/Mines | Discovered new exit (range 5) 363 | -10/Mines | Escorted by a lone wolf Derelict 425 | -10/Mines | Discovered new exit (range 6) 697 | -10/Mines | Learned Materials garrison access intel 1031 | -10/Mines | Entered Materials 1031 | -9/Materials | Accompanied by 1 ally 1031 | -9/Materials | Evolved 2 slots: Utility x2 1295 | -9/Materials | Identified exit to Mines 1340 | -9/Materials | Build established: Hauler-Mutant 1503 | -9/Materials | Entered Mines 1829 | -9/Mines | Learned location of Storage (-7) 1830 | -9/Mines | Discovered new exit (range 2) 1940 | -9/Mines | Deemed a non-threat by the Exiles lab entrance 1940 | -9/Mines | Discovered new exit (range 5) 1947 | -9/Mines | Entered Exiles 1991 | -9/Exiles | Met 8R-AWN 2021 | -9/Exiles | Met EX-HEX 2093 | -9/Exiles | Met EX-DEC 2100 | -9/Exiles | Learned location of Zion (-6) 2304 | -9/Exiles | Met EX-BIN 2326 | -9/Exiles | Aligned with FarCom system 2328 | -9/Exiles | Given EX-Vault access code 2369 | -9/Exiles | Opened EX-Vault 2383 | -9/Exiles | Found YOLO Cannon 2399 | -9/Exiles | Found Modified TNC 2439 | -9/Exiles | Warned to stay clear of 0b10 Research branches 2554 | -9/Exiles | Discovered new exit (range 14) 2863 | -9/Exiles | Build established: Mutant 2948 | -9/Exiles | Attacked by the Exiles 2989 | -9/Exiles | Core integrity fell below 50% 3017 | -9/Exiles | Lost 6 parts (1p2n2u1w) 3075 | -9/Exiles | Lost 3 parts (1n1u1w) 3078 | -9/Exiles | Core integrity fell below 20% 3094 | -9/Exiles | Destroyed 8R-AWN 3100 | -9/Exiles | Found Prototype Ballistic Gun 3180 | -9/Exiles | Identified 8R-AWN's Boregun 3371 | -9/Exiles | Found XL Autogun Array 3473 | -9/Exiles | Build established: Hauler-Mutant 3557 | -9/Exiles | Stole three prototypes: Modified TNC, YOLO Cannon, XL Autogun Array 3557 | -9/Exiles | Entered Mines 3699 | -8/Mines | Destroyed by G-47 Trooper with Particle Gun Last Messages --------------- 03169_ Dropped Lrg. Storage Unit. 03169_ Acquired Lrg. Storage Unit. 03176_ Acquired YOLO Cannon. 03177_ Identified Gravity Neutralizing Apparatus. 03180_ Identified 8R-AWN's Boregun. 03371_ Acquired XL Autogun Array. LOCATION=UNKNOWN GOAL=ESCAPE 03558_ Penetrated by Slug. 03569_ Hvy. Assault Rifle destroyed. 03572_ HV Slug penetrates H-55 Commando. 03572_ HV Slug penetrates Wall. 03572_ Penetrated by Slug. 03575_ H-55 Commando destroyed. 03575_ HV Slug penetrates Wall. 03581_ Acquired Assault Rifle. 03582_ Acquired 45 matter. 03698_ K-01 Serf collects debris. 03699_ Lgt. Treads destroyed. 03699_ K-01 Serf collects debris. Map ----- +----------------------------------------------------+ | ???????????????????###??????????????????????? | | ?????????????????## ##?????????????????????? | | ?????????????????# ##????????????????????? | | ?????????????????# #????????????????????? | | ??????############ #????????????????????? | | ??????# #????????????????????? | | ??????# ####### ##????????????????????? | | ??????# = ##????# ####????????????????????? | | ??????# ###???# ?? ????????????????????? | | ??????# #???#### #????????????????????? | | ??????# #??????? #????????????????????? | | ??????### ######## ###??????????????????? | | ????????# # ## #??????????????????? | | ????????###### #??????????????????? | | ?????????????# #??????????????????? | | ?????????????# """ """ #??????????????????? | | ?????????????# """ """ #??????????????????? | | ?????????????# """ """ #??????????????????? | | ?????????????# #??????????????????? | | ?????????????## #########??????????????????? | | ??????????????# #??????????????????????????? | | ??????????????# #??????????????????????????? | | ??????????????# #??????????????????????????? | | ??????????????# #####??????????????????????? | | ??????????????# #??????????????????????? | | ??????????????######@#??????????????????????? | | ??????????????????# ?????????????????????? | | ?????????????????# #????????????????????? | | ?????????????????## #???????????????????? | | ??????????????????# #???????????????????? | | ??????????????????## #???????????????????? | | ??????????????????? #???????????????????? | | ???????????????????## ##???????????????????? | | ????????????????????? g????????????????????? | | ?????????????????????gg ????????????????????? | | ????????????????????? ????????????????????? | | ????????????????????? ???????????????????? | | ????????????????????? ???????????????????? | | ????????????????????? ???????????????????? | | ?????????????????????k k ???????????????????? | | ?????????????????????? ?????????????????????? | | ????????????????????????????????????????????? | | ????????????????????????????????????????????? | | ????????????????????????????????????????????? | | ????????????????????????????????????????????? | | ????????????????????????????????????????????? | | ????????????????????????????????????????????? | | ????????????????????????????????????????????? | | ????????????????????????????????????????????? | | ????????????????????????????????????????????? | +----------------------------------------------------+ Best States ------------- Heat Dissipation 28 Energy Generation 18 Energy Capacity 250 Matter Stores 325 Matter Capacity 400 Sight Range 16 Terrain Scan Range 16 Terrain Scan Density 10 Armor Coverage 450 Evasion (%) 40 Recoil Reduction 2 Item Schematics ----------------- None Robot Schematics ------------------ None Fabricated ------------ Nothing Alien Tech Used ----------------- None Achievements -------------- None Challenges ------------ None Game ------ Seed PulseForceCycler Manual? 0 Play Time 00:20:33 Cumulative 767.4 hours Start 2020.10.31 @ 17:45:39 End 2020.10.31 @ 19:04:49 Sessions 3 Manual Loads 0 Difficulty Rogue Special Mode Halloween2020/ForbiddenLore Game No. 495 Rogue 495 Adventurer 0 Explorer 0 Win Type - Total 112 Types 76/7/8/10/5/1/4/0/1 Lore% 96 Gallery% 94 Achievement% 81 Wizard Run 0 Options --------- ASCII 0 Keyboard 0 Movement Numpad Keybinds 0 Fullscreen 2 Font 18/SmallcapsGlow Map View 76x50 Tactical HUD 1 Map Filters NONE Filters NONE Steam 1 RUN: a3ece0f5-9a86-4199-b969-1ef216808777